[Event "European Womens-ch 2025"]
[Site "Rhodes"]
[Date "2025.04.02"]
[Round "3.45"]
[White "Guichard, Pauline"]
[Black "Nenova, Andzhelika"]
[Result "1/2-1/2"]
[Annotator "RC"]
[ECO "D40"]
[WhiteElo "2355"]
[BlackElo "1903"]
[PlyCount "125"]
[EventDate "2025.03.29"]
[EventType "swiss"]
[EventCountry "GRE"]
[SourceTitle "playchess.com"]
[Source "ChessBase"]
[SourceQuality "1"]
[TimeControl "40/5400+30:1800+30"]

1. d4 {[%emt 0:00:03]} Nf6 {[%emt 0:00:16]} 2. c4 {[%emt 0:00:10]} c5 {[%emt 0:00:12]} 3. e3 {[%emt 0:03:17]} e6 {[%emt 0:00:32]} 4. Nf3 {[%emt 0:00:38]} d5 {[%emt 0:00:20]} 5. Nc3 {[%emt 0:03:10]} Nc6 {[%emt 0:00:09]} 6. a3 {[%emt 0:03:06]} a6 {[%emt 0:01:52]} 7. b3 {[%emt 0:08:44]} Bd6 {[%emt 0:01:06]} 8. dxc5 {[%emt 0:10:49]} Bxc5 {[%emt 0:00:08]} 9. Bb2 {[%emt 0:00:09]} O-O {[%emt 0:02:15]} 10. cxd5 {[%emt 0:00:45]} exd5 {[%emt 0:00:19]} 11. Be2 {[%emt 0:00:12]} Bg4 {[%emt 0:07:16]} 12. O-O {[%emt 0:03:18]} Qd6 {[%emt 0:03:54]} 13. Ne1 {[%emt 0:22:03]} Bf5 {[%emt 0:11:09]} 14. Nf3 {[%emt 0:09:52]} Bg4 {[%emt 0:00:06]} 15. h3 {[%emt 0:00:53]} Bh5 {[%emt 0:01:50]} 16. Nh4 {[%emt 0:00:51]} Bg6 {[%emt 0:02:01]} 17. Nxg6 {[%emt 0:06:35]} hxg6 {[%emt 0:00:27]} 18. b4 {[%emt 0:00:52]} Bb6 {[%emt 0:05:02]} 19. Bf3 {[%emt 0:04:01]} Rad8 {[%emt 0:04:15]} 20. Ne2 {[%emt 0:00:48]} Ne4 {[%emt 0:01:36]} 21. Bxe4 {[%emt 0:13:28]} dxe4 {[%emt 0:00:25]} 22. Ng3 {[%emt 0:00:26]} Qxd1 {[%emt 0:14:10]} 23. Rfxd1 {[%emt 0:00:12]} f5 {[%emt 0:00:07]} 24. Ne2 {[%emt 0:00:08]} Rxd1+ {[%emt 0:03:31]} 25. Rxd1 {[%emt 0:00:06]} Rd8 {[%emt 0:00:06]} 26. Rxd8+ {[%emt 0:00:20]} Bxd8 {[%emt 0:01:01]} 27. g4 {[%emt 0:00:12]} Kf7 {[%emt 0:01:31]} 28. Kg2 {[%emt 0:00:40]} Bf6 {[%emt 0:00:40]} 29. Bxf6 {[%emt 0:02:06]} Kxf6 {[%emt 0:00:09]} 30. Kg3 {[%emt 0:00:13]} Ne5 {[%emt 0:01:51]} 31. Nd4 {[%emt 0:02:53]} b5 {[%emt 0:03:16]} 32. Nb3 {[%emt 0:03:47]} Nc4 {[%emt 0:01:20]} 33. Nc5 {[%emt 0:00:12]} Nxa3 {[%emt 0:01:00]} 34. Nxa6 {[%emt 0:00:05]} Nc2 {[%emt 0:00:04]} 35. h4 {[%emt 0:01:27]} Ke5 {[%emt 0:03:57]} 36. Nc7 {[%emt 0:00:19]} Nxb4 {[%emt 0:01:00]} 37. Nxb5 {[%emt 0:00:04]} Nd5 {[%emt 0:00:55]} 38. Na3 {[%emt 0:00:47]} Nf6 {[%emt 0:01:39]} 39. g5 {[%emt 0:00:11]} Nd5 {[%emt 0:00:55]} 40. Nc4+ {[%emt 0:00:00]} Ke6 {[%emt 0:00:00]} 41. Na5 {[%emt 0:06:07]} Kd6 {[%emt 0:02:07]} 42. Nb3 {[%emt 0:04:16]} Ke6 {[%emt 0:00:58]} 43. Nd4+ {[%emt 0:00:31]} Ke5 {[%emt 0:00:27]} 44. Ne2 {[%emt 0:00:08]} Kd6 {[%emt 0:08:29]} 45. Kg2 {[%emt 0:05:22]} Ke5 {[%emt 0:00:57]} 46. Kg3 {[%emt 0:04:29]} Kd6 {[%emt 0:00:06]} 47. Nd4 {[%emt 0:01:04]} Ke5 {[%emt 0:00:27]} 48. Nc6+ {[%emt 0:00:29]} Kd6 {[%emt 0:00:20]} 49. Na5 {[%emt 0:00:15]} Ke5 {[%emt 0:00:47]} 50. Nc4+ {[%emt 0:00:34]} Ke6 {[%emt 0:00:05]} 51. f4 {[%emt 0:00:42]} exf3 {[%emt 0:01:02]} 52. Kxf3 {[%emt 0:00:05]} Nc3 {[%emt 0:00:46]} 53. Nb2 {[%emt 0:00:36]} Nd5 {[%emt 0:03:59]} 54. Nd3 {[%emt 0:00:12]} Ne7 {[%emt 0:00:54]} 55. Nf4+ {[%emt 0:00:20]} Ke5 {[%emt 0:00:12]} 56. Kf2 {[%emt 0:06:07]} Ke4 {[%emt 0:08:33]} 57. Ke2 {[%emt 0:00:05]} Nd5 {[%emt 0:01:48]} 58. Nxg6 {[%emt 0:00:09]} Nxe3 {[%emt 0:00:49]} 59. h5 {[%emt 0:00:06]} Ng4 {[%emt 0:00:33]} 60. Kf1 {[%emt 0:01:52]} f4 {[%emt 0:01:05]} 61. h6 {[%emt 0:02:15]} gxh6 {[%emt 0:00:41]} 62. gxh6 {[%emt 0:00:05]} Nxh6 {[%emt 0:00:05]} 63. Nxf4 {[%emt 0:00:03]} 1/2-1/2

[Event "European Womens-ch 2025"]
[Site "Rhodes"]
[Date "2025.04.02"]
[Round "3.46"]
[White "Subramanian, Anusha"]
[Black "Sliwicka, Alicja"]
[Result "1/2-1/2"]
[Annotator "RC"]
[ECO "D03"]
[WhiteElo "2026"]
[BlackElo "2342"]
[PlyCount "82"]
[EventDate "2025.03.29"]
[EventType "swiss"]
[EventCountry "GRE"]
[SourceTitle "playchess.com"]
[Source "ChessBase"]
[SourceQuality "1"]
[TimeControl "40/5400+30:1800+30"]

1. d4 {[%emt 0:00:03]} Nf6 {[%emt 0:00:11]} 2. Bg5 {[%emt 0:00:06]} d5 {[%emt 0:00:18]} 3. Nd2 {[%emt 0:00:07]} Nbd7 {[%emt 0:03:11]} 4. Ngf3 {[%emt 0:01:20]} b6 {[%emt 0:06:41]} 5. e3 {[%emt 0:00:53]} Bb7 {[%emt 0:00:15]} 6. c4 {[%emt 0:02:11]} e6 {[%emt 0:07:16]} 7. Ne5 {[%emt 0:06:13]} h6 {[%emt 0:07:44]} 8. Bh4 {[%emt 0:08:15]} Bb4 {[%emt 0:05:48]} 9. Bxf6 {[%emt 0:15:44]} gxf6 {[%emt 0:03:19]} 10. Nxd7 {[%emt 0:02:21]} Qxd7 {[%emt 0:00:06]} 11. cxd5 {[%emt 0:00:37]} Bxd5 {[%emt 0:01:53]} 12. a3 {[%emt 0:00:42]} Be7 {[%emt 0:03:33]} 13. Nf3 {[%emt 0:02:19]} Rg8 {[%emt 0:01:52]} 14. g3 {[%emt 0:02:32]} c5 {[%emt 0:04:14]} 15. Bg2 {[%emt 0:05:18]} Qb5 {[%emt 0:02:10]} 16. Qe2 {[%emt 0:05:55]} Bc4 {[%emt 0:06:10]} 17. Qc2 {[%emt 0:01:22]} Rd8 {[%emt 0:05:18]} 18. Rc1 {[%emt 0:03:46]} Bd3 {[%emt 0:04:10]} 19. Qd2 {[%emt 0:00:24]} Be4 {[%emt 0:02:14]} 20. Qe2 {[%emt 0:04:56]} Bd3 {[%emt 0:00:06]} 21. Qd2 {[%emt 0:00:14]} Qa6 {[%emt 0:05:37]} 22. Rc3 {[%emt 0:04:52]} Bb5 {[%emt 0:00:06]} 23. Qc2 {[%emt 0:00:48]} Bc6 {[%emt 0:03:15]} 24. Qe2 {[%emt 0:02:21]} Bb5 {[%emt 0:00:04]} 25. Qc2 {[%emt 0:00:58]} Kf8 {[%emt 0:04:17]} 26. Bf1 {[%emt 0:06:39]} Bxf1 {[%emt 0:00:36]} 27. Rxf1 {[%emt 0:00:06]} Qb7 {[%emt 0:00:53]} 28. Qe2 {[%emt 0:01:36]} Qe4 {[%emt 0:00:08]} 29. Nd2 {[%emt 0:00:48]} Qd5 {[%emt 0:01:45]} 30. Nf3 {[%emt 0:04:45]} e5 {[%emt 0:01:47]} 31. dxe5 {[%emt 0:04:15]} fxe5 {[%emt 0:00:15]} 32. Rc1 {[%emt 0:00:37]} Bf6 {[%emt 0:03:01]} 33. e4 {[%emt 0:01:34]} Qb3 {[%emt 0:00:26]} 34. Rc3 {[%emt 0:02:04]} Qa4 {[%emt 0:02:06]} 35. Qc2 {[%emt 0:01:15]} Qxc2 {[%emt 0:06:02]} 36. Rxc2 {[%emt 0:00:01]} Rg4 {[%emt 0:00:52]} 37. Nd2 {[%emt 0:00:54]} Bg5 {[%emt 0:01:11]} 38. f3 {[%emt 0:02:16]} Bxd2+ {[%emt 0:00:36]} 39. Rxd2 {[%emt 0:00:02]} Rxd2 {[%emt 0:00:07]} 40. Kxd2 {[%emt 0:00:00]} Rg6 {[%emt 0:00:00]} 41. Kc3 {[%emt 0:05:38]} Rd6 {[%emt 0:02:52]} 1/2-1/2

[Event "European Womens-ch 2025"]
[Site "Rhodes"]
[Date "2025.04.02"]
[Round "3.47"]
[White "Szente Varga, Fruzsina"]
[Black "Khurtsilava, Inga"]
[Result "0-1"]
[Annotator "RC"]
[ECO "B12"]
[WhiteElo "2083"]
[BlackElo "2214"]
[PlyCount "132"]
[EventDate "2025.03.29"]
[EventType "swiss"]
[EventCountry "GRE"]
[SourceTitle "playchess.com"]
[Source "ChessBase"]
[SourceQuality "1"]
[TimeControl "40/5400+30:1800+30"]

1. e4 {[%emt 0:00:03]} c6 {[%emt 0:00:06]} 2. d4 {[%emt 0:00:05]} d5 {[%emt 0:00:05]} 3. e5 {[%emt 0:00:38]} Bf5 {[%emt 0:00:08]} 4. h4 {[%emt 0:00:03]} h5 {[%emt 0:00:14]} 5. Bd3 {[%emt 0:00:05]} Bxd3 {[%emt 0:00:45]} 6. Qxd3 {[%emt 0:00:06]} e6 {[%emt 0:00:23]} 7. Nf3 {[%emt 0:01:46]} Qa5+ {[%emt 0:02:40]} 8. Nbd2 {[%emt 0:00:19]} Qa6 {[%emt 0:00:19]} 9. c4 {[%emt 0:00:07]} Bb4 {[%emt 0:12:18]} 10. b3 {[%emt 0:00:30]} c5 {[%emt 0:04:44]} 11. a3 {[%emt 0:07:26]} Nc6 {[%emt 0:06:20]} 12. O-O {[%emt 0:04:45]} Bxd2 {[%emt 0:00:49]} 13. Bxd2 {[%emt 0:05:33]} dxc4 {[%emt 0:00:13]} 14. bxc4 {[%emt 0:00:19]} Rd8 {[%emt 0:06:02]} 15. d5 {[%emt 0:06:35]} Rxd5 {[%emt 0:06:47]} 16. Qe4 {[%emt 0:08:19]} Rd7 {[%emt 0:03:02]} 17. Be3 {[%emt 0:00:50]} Nd4 {[%emt 0:03:10]} 18. Bxd4 {[%emt 0:03:01]} cxd4 {[%emt 0:00:13]} 19. Rfd1 {[%emt 0:01:29]} Ne7 {[%emt 0:05:06]} 20. Rxd4 {[%emt 0:01:02]} Rxd4 {[%emt 0:03:30]} 21. Qxd4 {[%emt 0:00:14]} O-O {[%emt 0:00:29]} 22. Qc5 {[%emt 0:16:28]} Nf5 {[%emt 0:06:38]} 23. Rd1 {[%emt 0:01:33]} Qa4 {[%emt 0:00:40]} 24. Rd2 {[%emt 0:01:28]} b6 {[%emt 0:00:50]} 25. Qc7 {[%emt 0:05:49]} Qxa3 {[%emt 0:00:48]} 26. Rd8 {[%emt 0:03:07]} Rxd8 {[%emt 0:01:26]} 27. Qxd8+ {[%emt 0:00:05]} Qf8 {[%emt 0:00:08]} 28. Qc7 {[%emt 0:03:09]} Qa8 {[%emt 0:00:33]} 29. Ng5 {[%emt 0:01:23]} Nh6 {[%emt 0:00:12]} 30. Kh2 {[%emt 0:05:57]} g6 {[%emt 0:15:13]} 31. f3 {[%emt 0:01:03]} a5 {[%emt 0:08:01]} 32. Qxb6 {[%emt 0:04:04]} a4 {[%emt 0:00:06]} 33. c5 {[%emt 0:00:53]} a3 {[%emt 0:00:06]} 34. c6 {[%emt 0:02:04]} a2 {[%emt 0:00:38]} 35. c7 {[%emt 0:00:02]} a1=Q {[%emt 0:00:11]} 36. Qb8+ {[%emt 0:00:04]} Kg7 {[%emt 0:00:23]} 37. c8=Q {[%emt 0:00:57]} Qxb8 {[%emt 0:00:10]} 38. Qxb8 {[%emt 0:00:04]} Qe1 {[%emt 0:00:43]} 39. Ne4 {[%emt 0:11:08]} Qxh4+ {[%emt 0:00:09]} 40. Kg1 {[%emt 0:00:00]} Qe1+ {[%emt 0:00:00]} 41. Kh2 {[%emt 0:00:07]} Qh4+ {[%emt 0:17:57]} 42. Kg1 {[%emt 0:00:17]} Ng8 {[%emt 0:01:22]} 43. Kf1 {[%emt 0:07:01]} Qf4 {[%emt 0:05:16]} 44. Nd6 {[%emt 0:05:41]} h4 {[%emt 0:03:34]} 45. Kf2 {[%emt 0:01:26]} Qg3+ {[%emt 0:00:49]} 46. Kf1 {[%emt 0:00:42]} h3 {[%emt 0:00:19]} 47. gxh3 {[%emt 0:00:49]} Qxf3+ {[%emt 0:00:09]} 48. Ke1 {[%emt 0:00:25]} Qxh3 {[%emt 0:03:05]} 49. Ne8+ {[%emt 0:00:05]} Kh7 {[%emt 0:01:16]} 50. Qc7 {[%emt 0:00:13]} Qh4+ {[%emt 0:01:12]} 51. Ke2 {[%emt 0:00:20]} Qe7 {[%emt 0:01:49]} 52. Qb8 {[%emt 0:00:17]} Qg5 {[%emt 0:04:52]} 53. Qc7 {[%emt 0:02:20]} Ne7 {[%emt 0:03:28]} 54. Nf6+ {[%emt 0:00:11]} Kg7 {[%emt 0:00:11]} 55. Qb8 {[%emt 0:02:44]} Qg2+ {[%emt 0:00:47]} 56. Ke1 {[%emt 0:00:46]} Qc6 {[%emt 0:02:28]} 57. Ne8+ {[%emt 0:04:27]} Kh6 {[%emt 0:00:23]} 58. Nd6 {[%emt 0:00:03]} Qc3+ {[%emt 0:00:46]} 59. Kf1 {[%emt 0:01:06]} Qf3+ {[%emt 0:00:16]} 60. Ke1 {[%emt 0:00:19]} Qe3+ {[%emt 0:02:03]} 61. Kf1 {[%emt 0:00:12]} Qf4+ {[%emt 0:00:10]} 62. Kg2 {[%emt 0:00:19]} Kg5 {[%emt 0:01:40]} 63. Qh8 {[%emt 0:00:11]} Nd5 {[%emt 0:00:44]} 64. Qh3 {[%emt 0:01:34]} Qd2+ {[%emt 0:00:27]} 65. Kg1 {[%emt 0:00:10]} Qe1+ {[%emt 0:00:15]} 66. Kg2 {[%emt 0:00:17]} Nf4+ {[%emt 0:00:06]} 0-1

[Event "European Womens-ch 2025"]
[Site "Rhodes"]
[Date "2025.04.02"]
[Round "3.48"]
[White "Valkova, Angelika"]
[Black "Schloffer, Jasmin-Denise"]
[Result "0-1"]
[Annotator "RC"]
[ECO "E28"]
[WhiteElo "2001"]
[BlackElo "2188"]
[PlyCount "96"]
[EventDate "2025.03.29"]
[EventType "swiss"]
[EventCountry "GRE"]
[SourceTitle "playchess.com"]
[Source "ChessBase"]
[SourceQuality "1"]
[TimeControl "40/5400+30:1800+30"]

1. d4 {[%emt 0:00:02]} Nf6 {[%emt 0:00:06]} 2. c4 {[%emt 0:00:05]} e6 {[%emt 0:00:05]} 3. Nc3 {[%emt 0:00:04]} Bb4 {[%emt 0:00:04]} 4. e3 {[%emt 0:00:07]} O-O {[%emt 0:00:05]} 5. a3 {[%emt 0:00:05]} Bxc3+ {[%emt 0:00:06]} 6. bxc3 {[%emt 1:33:07]} d6 {[%emt 0:00:07]} 7. Ne2 {[%emt 0:00:00]} c5 {[%emt 0:00:05]} 8. Ng3 {[%emt 0:00:00]} Nc6 {[%emt 0:00:09]} 9. Be2 {[%emt 0:00:00]} b6 {[%emt 0:04:24]} 10. e4 {[%emt 0:00:00]} Ba6 {[%emt 0:08:14]} 11. d5 {[%emt 0:00:00]} Na5 {[%emt 0:03:05]} 12. O-O {[%emt 0:00:00]} Bxc4 {[%emt 0:04:44]} 13. Bxc4 {[%emt 0:00:00]} Nxc4 {[%emt 0:00:05]} 14. Qe2 {[%emt 0:00:00]} exd5 {[%emt 0:06:05]} 15. exd5 {[%emt 0:00:00]} b5 {[%emt 0:00:07]} 16. a4 {[%emt 0:00:00]} a6 {[%emt 0:02:15]} 17. Bg5 {[%emt 0:00:00]} h6 {[%emt 0:07:54]} 18. axb5 {[%emt 0:00:00]} hxg5 {[%emt 0:00:35]} 19. Qxc4 {[%emt 0:00:00]} axb5 {[%emt 0:00:17]} 20. Qxb5 {[%emt 0:00:00]} Nxd5 {[%emt 0:03:01]} 21. Ne4 {[%emt 0:00:00]} Rxa1 {[%emt 0:05:59]} 22. Rxa1 {[%emt 0:00:00]} Qe7 {[%emt 0:00:40]} 23. f3 {[%emt 0:00:00]} Nxc3 {[%emt 0:01:14]} 24. Qd3 {[%emt 0:00:00]} Nxe4 {[%emt 0:00:20]} 25. fxe4 {[%emt 0:09:30]} Re8 {[%emt 0:03:01]} 26. Rd1 {[%emt 0:00:00]} Qxe4 {[%emt 0:03:45]} 27. Qxe4 {[%emt 0:00:00]} Rxe4 {[%emt 0:00:06]} 28. Rxd6 {[%emt 0:00:00]} f6 {[%emt 0:00:55]} 29. Rc6 {[%emt 0:00:00]} Rc4 {[%emt 0:04:48]} 30. h3 {[%emt 0:00:00]} Rc2 {[%emt 0:01:45]} 31. Kh2 {[%emt 0:00:00]} Kf7 {[%emt 0:02:24]} 32. Rc7+ {[%emt 0:00:00]} Kg6 {[%emt 0:00:12]} 33. Kg3 {[%emt 0:00:00]} c4 {[%emt 0:01:39]} 34. Kf3 {[%emt 0:00:00]} c3 {[%emt 0:04:30]} 35. Rc6 {[%emt 0:00:00]} Rc1 {[%emt 0:00:30]} 36. Kg3 {[%emt 0:00:00]} Kf5 {[%emt 0:02:54]} 37. Rc7 {[%emt 0:00:00]} Ke4 {[%emt 0:05:38]} 38. Rxg7 {[%emt 0:00:11]} Rf1 {[%emt 0:00:20]} 39. Rc7 {[%emt 0:00:07]} Kd3 {[%emt 0:00:30]} 40. Rd7+ {[%emt 0:00:30]} Ke2 {[%emt 0:00:30]} 41. Re7+ {[%emt 0:30:30]} Kd2 {[%emt 0:30:30]} 42. Rd7+ {[%emt 0:00:30]} Kc1 {[%emt 0:00:30]} 43. Kg4 {[%emt 0:00:30]} c2 {[%emt 0:00:00]} 44. g3 {[%emt 0:00:00]} Kb2 {[%emt 0:00:00]} 45. Rb7+ {[%emt 0:00:00]} Kc3 {[%emt 0:00:00]} 46. Rc7+ {[%emt 0:00:00]} Kd3 {[%emt 0:00:00]} 47. Rd7+ {[%emt 0:00:00]} Ke4 {[%emt 0:00:00]} 48. Re7+ {[%emt 0:00:00]} Kd5 {[%emt 0:00:00]} 0-1

[Event "European Womens-ch 2025"]
[Site "Rhodes"]
[Date "2025.04.02"]
[Round "3.49"]
[White "Hariharan, Shambavi"]
[Black "Terbe, Zsuzsanna"]
[Result "1/2-1/2"]
[Annotator "RC"]
[ECO "D45"]
[WhiteElo "2024"]
[BlackElo "2179"]
[PlyCount "82"]
[EventDate "2025.03.29"]
[EventType "swiss"]
[EventCountry "GRE"]
[SourceTitle "playchess.com"]
[Source "ChessBase"]
[SourceQuality "1"]
[TimeControl "40/5400+30:1800+30"]

1. d4 {[%emt 0:00:03]} d5 {[%emt 0:01:42]} 2. c4 {[%emt 0:00:05]} c6 {[%emt 0:00:05]} 3. Nf3 {[%emt 0:00:06]} Nf6 {[%emt 0:00:11]} 4. e3 {[%emt 0:00:05]} e6 {[%emt 0:00:52]} 5. Nc3 {[%emt 0:01:23]} Nbd7 {[%emt 0:00:57]} 6. b3 {[%emt 0:00:48]} Bd6 {[%emt 0:06:22]} 7. Bb2 {[%emt 0:01:13]} O-O {[%emt 0:00:25]} 8. Be2 {[%emt 0:00:12]} b6 {[%emt 0:07:53]} 9. O-O {[%emt 0:01:00]} Bb7 {[%emt 0:00:51]} 10. Qc2 {[%emt 0:00:21]} Qe7 {[%emt 0:00:16]} 11. e4 {[%emt 0:04:38]} dxe4 {[%emt 0:05:09]} 12. Nxe4 {[%emt 0:01:03]} Nxe4 {[%emt 0:00:08]} 13. Qxe4 {[%emt 0:00:09]} f5 {[%emt 0:00:18]} 14. Qd3 {[%emt 0:06:12]} c5 {[%emt 0:00:47]} 15. Rad1 {[%emt 0:00:36]} Rad8 {[%emt 0:03:32]} 16. dxc5 {[%emt 0:10:05]} Nxc5 {[%emt 0:01:30]} 17. Qe3 {[%emt 0:03:38]} Ne4 {[%emt 0:08:31]} 18. Be5 {[%emt 0:09:00]} f4 {[%emt 0:11:08]} 19. Bxd6 {[%emt 0:02:27]} Rxd6 {[%emt 0:02:01]} 20. Qc1 {[%emt 0:01:03]} e5 {[%emt 0:03:20]} 21. Rxd6 {[%emt 0:05:06]} Qxd6 {[%emt 0:01:04]} 22. Qb2 {[%emt 0:11:09]} Re8 {[%emt 0:00:28]} 23. Rd1 {[%emt 0:01:57]} Qc5 {[%emt 0:01:10]} 24. Bf1 {[%emt 0:05:35]} Nf6 {[%emt 0:02:45]} 25. b4 {[%emt 0:01:11]} Qe7 {[%emt 0:02:50]} 26. Qb3 {[%emt 0:01:42]} Bxf3 {[%emt 0:03:13]} 27. gxf3 {[%emt 0:05:06]} Kh8 {[%emt 0:00:25]} 28. a3 {[%emt 0:01:47]} e4 {[%emt 0:11:43]} 29. fxe4 {[%emt 0:02:33]} Nxe4 {[%emt 0:00:22]} 30. Re1 {[%emt 0:01:27]} Qg5+ {[%emt 0:07:56]} 31. Bg2 {[%emt 0:02:27]} Nf6 {[%emt 0:03:19]} 32. Rxe8+ {[%emt 0:00:11]} Nxe8 {[%emt 0:00:02]} 33. Qf3 {[%emt 0:00:19]} Qe5 {[%emt 0:02:05]} 34. Qa8 {[%emt 0:05:50]} Qe1+ {[%emt 0:00:32]} 35. Bf1 {[%emt 0:00:06]} h5 {[%emt 0:03:15]} 36. Kg2 {[%emt 0:03:05]} Kh7 {[%emt 0:00:18]} 37. Bd3+ {[%emt 0:00:58]} Kh6 {[%emt 0:01:54]} 38. Be4 {[%emt 0:04:08]} f3+ {[%emt 0:00:07]} 39. Kxf3 {[%emt 0:07:10]} Qd1+ {[%emt 0:00:39]} 40. Kg2 {[%emt 0:00:00]} Qg4+ {[%emt 0:00:00]} 41. Kf1 {[%emt 0:01:15]} Qd1+ {[%emt 0:00:32]} 1/2-1/2

[Event "European Womens-ch 2025"]
[Site "Rhodes"]
[Date "2025.04.02"]
[Round "3.50"]
[White "Rodshtein, Tereza"]
[Black "Donghvani, Nia"]
[Result "1-0"]
[Annotator "RC"]
[ECO "B94"]
[WhiteElo "2171"]
[BlackElo "2025"]
[PlyCount "51"]
[EventDate "2025.03.29"]
[EventType "swiss"]
[EventCountry "GRE"]
[SourceTitle "playchess.com"]
[Source "ChessBase"]
[SourceQuality "1"]
[TimeControl "40/5400+30:1800+30"]

1. e4 {[%emt 0:00:03]} c5 {[%emt 0:00:10]} 2. Nf3 {[%emt 0:00:07]} d6 {[%emt 0:00:20]} 3. d4 {[%emt 0:00:13]} cxd4 {[%emt 0:00:05]} 4. Nxd4 {[%emt 0:00:04]} Nf6 {[%emt 0:00:06]} 5. Nc3 {[%emt 0:00:07]} a6 {[%emt 0:00:10]} 6. Bg5 {[%emt 0:00:25]} Nbd7 {[%emt 0:00:21]} 7. Bc4 {[%emt 0:06:55]} e6 {[%emt 0:11:23]} 8. Qe2 {[%emt 0:04:56]} Qa5 {[%emt 0:32:26]} 9. f4 {[%emt 0:04:46]} Be7 {[%emt 0:09:29]} 10. O-O-O {[%emt 0:03:02]} O-O {[%emt 0:06:41]} 11. Kb1 {[%emt 0:05:59]} Re8 {[%emt 0:04:31]} 12. g4 {[%emt 0:13:49]} Bf8 {[%emt 0:04:01]} 13. Bb3 {[%emt 0:08:16]} Nc5 {[%emt 0:16:23]} 14. Bxf6 {[%emt 0:01:49]} gxf6 {[%emt 0:00:01]} 15. f5 {[%emt 0:00:23]} b5 {[%emt 0:02:01]} 16. g5 {[%emt 0:03:16]} fxg5 {[%emt 0:03:17]} 17. Qh5 {[%emt 0:00:25]} Qd8 {[%emt 0:03:21]} 18. h4 {[%emt 0:03:43]} g4 {[%emt 0:00:37]} 19. e5 {[%emt 0:04:12]} Nxb3 {[%emt 0:00:22]} 20. f6 {[%emt 0:07:23]} dxe5 {[%emt 0:00:50]} 21. Ne4 {[%emt 0:05:16]} Qc7 {[%emt 0:02:00]} 22. Rhg1 {[%emt 0:01:53]} Kh8 {[%emt 0:00:51]} 23. Ng5 {[%emt 0:01:41]} h6 {[%emt 0:00:05]} 24. Nxf7+ {[%emt 0:00:12]} Kh7 {[%emt 0:00:03]} 25. Rxg4 {[%emt 0:00:46]} Nxd4 {[%emt 0:01:30]} 26. Qg6# {[%emt 0:23:49]} 1-0

[Event "European Womens-ch 2025"]
[Site "Rhodes"]
[Date "2025.04.02"]
[Round "3.51"]
[White "Abdinova, Narmin"]
[Black "Bhatia, Kanishka"]
[Result "1-0"]
[Annotator "RC"]
[ECO "A62"]
[WhiteElo "2165"]
[BlackElo "2012"]
[PlyCount "99"]
[EventDate "2025.03.29"]
[EventType "swiss"]
[EventCountry "GRE"]
[SourceTitle "playchess.com"]
[Source "ChessBase"]
[SourceQuality "1"]
[TimeControl "40/5400+30:1800+30"]

1. d4 {[%emt 1:31:00]} Nf6 {[%emt 1:31:00]} 2. c4 {[%emt 0:00:30]} e6 {[%emt 0:00:30]} 3. g3 {[%emt 0:00:30]} c5 {[%emt 0:00:30]} 4. d5 {[%emt 0:00:30]} exd5 {[%emt 0:00:30]} 5. cxd5 {[%emt 0:00:30]} d6 {[%emt 0:00:30]} 6. Nc3 {[%emt 0:00:30]} g6 {[%emt 0:00:30]} 7. Nf3 {[%emt 0:00:30]} Bg7 {[%emt 0:00:30]} 8. Bg2 {[%emt 0:00:30]} O-O {[%emt 0:00:30]} 9. O-O {[%emt 0:00:30]} Re8 {[%emt 0:00:30]} 10. Bf4 {[%emt 0:00:30]} Nh5 {[%emt 0:00:30]} 11. Bg5 {[%emt 0:00:30]} Qc7 {[%emt 0:00:30]} 12. Qd2 {[%emt 0:00:30]} a6 {[%emt 0:00:30]} 13. a4 {[%emt 0:00:30]} Nd7 {[%emt 0:00:30]} 14. Rfe1 {[%emt 0:00:30]} Rb8 {[%emt 0:00:30]} 15. Bh6 {[%emt 0:00:30]} Bh8 {[%emt 0:00:30]} 16. e4 {[%emt 0:00:30]} b5 {[%emt 0:00:30]} 17. axb5 {[%emt 0:00:30]} axb5 {[%emt 0:00:30]} 18. Bf1 {[%emt 0:00:30]} c4 {[%emt 0:00:30]} 19. Nd4 {[%emt 0:00:30]} b4 {[%emt 0:00:30]} 20. Ncb5 {[%emt 0:00:30]} Qc5 {[%emt 0:00:30]} 21. Be3 {[%emt 0:00:30]} Ne5 {[%emt 0:00:30]} 22. Kg2 {[%emt 0:00:30]} Ng4 {[%emt 0:00:30]} 23. Rac1 {[%emt 0:00:30]} Nxe3+ {[%emt 0:00:30]} 24. Rxe3 {[%emt 0:00:30]} Bd7 {[%emt 0:00:30]} 25. Rxc4 {[%emt 0:00:30]} Qb6 {[%emt 0:00:30]} 26. Rc6 {[%emt 0:00:30]} Bxc6 {[%emt 0:00:30]} 27. Nxc6 {[%emt 0:00:30]} Qc5 {[%emt 0:00:30]} 28. Nc7 {[%emt 0:00:30]} Rbc8 {[%emt 0:00:30]} 29. Nxe8 {[%emt 0:00:30]} Rxe8 {[%emt 0:00:30]} 30. Re2 {[%emt 0:00:30]} Nf6 {[%emt 0:00:30]} 31. f3 {[%emt 0:00:30]} Ra8 {[%emt 0:00:30]} 32. Qxb4 {[%emt 0:00:30]} Qc1 {[%emt 0:00:30]} 33. Qxd6 {[%emt 0:00:30]} Ra1 {[%emt 0:00:30]} 34. Rf2 {[%emt 0:00:30]} h5 {[%emt 0:00:30]} 35. e5 {[%emt 0:00:30]} Nh7 {[%emt 0:00:30]} 36. e6 {[%emt 0:00:30]} Bxb2 {[%emt 0:00:30]} 37. e7 {[%emt 0:00:30]} Nf6 {[%emt 0:00:30]} 38. Qb8+ {[%emt 0:00:30]} Kg7 {[%emt 0:00:30]} 39. Qxb2 {[%emt 0:00:30]} Qxb2 {[%emt 0:00:30]} 40. Rxb2 {[%emt 0:00:30]} Rd1 {[%emt 0:00:30]} 41. Rb8 {[%emt 0:30:30]} Rd2+ {[%emt 0:30:30]} 42. Kg1 {[%emt 0:00:30]} Rxd5 {[%emt 0:00:30]} 43. e8=Q {[%emt 0:00:30]} Nxe8 {[%emt 0:00:30]} 44. Rxe8 {[%emt 0:00:30]} Rc5 {[%emt 0:00:30]} 45. Ne5 {[%emt 0:00:30]} f6 {[%emt 0:00:30]} 46. Re7+ {[%emt 0:00:30]} Kh6 {[%emt 0:00:30]} 47. Nd7 {[%emt 0:00:30]} Rc3 {[%emt 0:00:30]} 48. Nf8 {[%emt 0:00:30]} Kg5 {[%emt 0:00:30]} 49. h4+ {[%emt 0:00:30]} Kf5 {[%emt 0:00:30]} 50. Bh3# {[%emt 0:00:30]} 1-0